fUSD/lending_fUSD_20240927
["ID","MTS","AMOUNT","RATE_DAILY","PERIOD"]
[339262874,1727419832828,-299.5995,0.00012777,2]
[339262875,1727419832838,-150.0,0.00012778,2]
[339262876,1727419832847,-14937.19,0.0001278,2]
[339262877,1727419832858,-300.0,0.00012786,2]
[339262878,1727419832870,-290.44662321,0.00012787,2]
[339262879,1727419832880,-1570.2275,0.00012788,2]
[339262880,1727419832890,-150.0,0.00012793,2]
[339262881,1727419832899,-150.0,0.00012794,2]
[339262882,1727419832910,-500.0,0.00012797,2]
[339262883,1727419832919,-21313.46025979,0.00012797,2]
[339262884,1727419832930,-297.04785907,0.00012797,2]
[339262885,1727419832942,-1055.69681033,0.00012797,2]
[339262886,1727419832953,-4042.12727081,0.00012797,2]
[339262887,1727419832963,-1809.06027154,0.000128,2]
[339262888,1727419832974,-345.80403217,0.000128,2]
[339262889,1727419832988,-1683.16029629,0.000128,2]
[339262890,1727419833000,-166.6922846,0.000128,2]
[339262891,1727419833009,-229.5392,0.000128,2]
[339262892,1727419833019,-190.98665055,0.000128,2]
[339262893,1727419833028,-4109.33939708,0.000128,2]
[339262896,1727419838452,-316.64917827,0.000128,2]
[339262897,1727419838463,-179.39262099,0.000128,2]
[339262898,1727419838472,-179.39262099,0.000128,2]
[339262899,1727419838482,-179.89,0.000128,2]
[339262900,1727419838496,-152.36893378,0.000128,2]
[339262901,1727419838507,-152.36893378,0.000128,2]
[339262902,1727419838516,-118.67517219,0.000128,2]
[339262903,1727419838556,-33.69376159,0.000128,2]
[339262904,1727419838568,-152.36893378,0.000128,2]
[339262905,1727419838578,-152.36893378,0.000128,2]
[339262906,1727419838590,-152.36893378,0.000128,2]
[339262907,1727419838601,-152.36893378,0.000128,2]
[339262908,1727419838610,-152.36893378,0.000128,2]
[339262909,1727419838619,-152.36893378,0.000128,2]
[339262910,1727419838629,-152.36893378,0.000128,2]
[339262911,1727419838639,-152.36893378,0.000128,2]
[339262912,1727419838648,-152.36893378,0.000128,2]
[339262913,1727419838659,-152.36893378,0.000128,2]
[339262914,1727419838668,-152.36893378,0.000128,2]
[339262915,1727419838678,-152.36893378,0.000128,2]
[339262916,1727419838687,-152.36893378,0.000128,2]
[339262917,1727419838698,-152.36893378,0.000128,2]
[339262918,1727419838707,-152.36893378,0.000128,2]
[339262919,1727419838716,-152.36893378,0.000128,2]
[339262920,1727419838726,-152.86,0.000128,2]
[339262921,1727419838735,-175.98297743,0.000128,2]
[339262922,1727419838746,-175.98297743,0.000128,2]
[339262923,1727419838756,-175.98297743,0.000128,2]
[339262924,1727419838766,-175.98297743,0.000128,2]
[339262925,1727419838777,-175.98297743,0.000128,2]
[339262926,1727419838787,-175.98297743,0.000128,2]
[339262927,1727419838796,-175.98297743,0.000128,2]
[339262928,1727419838806,-175.98297743,0.000128,2]
[339262929,1727419838816,-175.98297743,0.000128,2]
[339262930,1727419838827,-175.98297743,0.000128,2]
[339262931,1727419838837,-175.98297743,0.000128,2]
[339262932,1727419838846,-175.98297743,0.000128,2]
[339262933,1727419838855,-175.98297743,0.000128,2]
[339262934,1727419838864,-175.98297743,0.000128,2]
[339262935,1727419838874,-175.98297743,0.000128,2]
[339262936,1727419838883,-175.98297743,0.000128,2]
[339262937,1727419838892,-175.98297743,0.000128,2]
[339262938,1727419838902,-175.98297743,0.000128,2]
[339262939,1727419838911,-175.98297743,0.000128,2]
[339262940,1727419838920,-176.48,0.000128,2]
[339262941,1727419838930,-1499.92355937,0.000128,2]
[339262942,1727419838939,-159.504981,0.00012803,2]
[339262943,1727419838950,-150.0,0.00012807,2]
[339262944,1727419838959,-900.0,0.00012808,2]
[339262945,1727419838968,-4425.98857528,0.00012811,2]
[339262946,1727419838978,-1500.0,0.00012812,2]
[339262947,1727419838987,-150.0,0.00012815,2]
[339262949,1727419838996,-150.0,0.00012816,2]
[339262951,1727419839010,-150.0,0.00012818,2]
[339262953,1727419839019,-1500.0,0.00012818,2]
[339262955,1727419839028,-150.0,0.00012822,2]
[339262957,1727419839037,-4425.98857528,0.00012822,2]
[339262959,1727419839047,-150.0,0.00012827,2]
[339262961,1727419839056,-150.0,0.00012829,2]
[339262963,1727419839065,-150.0,0.00012829,2]
[339262965,1727419839074,-4425.98857528,0.00012833,2]
[339262967,1727419839084,-150.0,0.00012839,2]
[339262969,1727419839093,-4425.98857528,0.00012844,2]
[339262971,1727419839102,-150.0,0.00012849,2]
[339262973,1727419839112,-1500.0,0.00012853,2]
[339262975,1727419839121,-150.0,0.00012853,2]
[339262977,1727419839131,-872.391532,0.00012855,2]
[339262979,1727419839140,-4425.98857528,0.00012856,2]
[339262981,1727419839149,-1500.0,0.00012864,2]
[339262983,1727419839159,-4425.98857528,0.00012867,2]
[339262985,1727419839168,-277.773,0.00012867,2]
[339262986,1727419839177,-150.325,0.00012867,2]
[339262988,1727419839186,-150.0,0.0001287,2]
[339262990,1727419839196,-500.0,0.00012873,2]
[339262992,1727419839205,-500.0,0.00012873,2]
[339262994,1727419839214,-150.0,0.00012875,2]
[339262996,1727419839223,-150.0,0.00012875,2]
[339262998,1727419839233,-270.66522426,0.00012877,2]
[339263001,1727419839243,-150.0,0.00012877,2]
[339263003,1727419839255,-4425.98857528,0.00012878,2]
[339263005,1727419839265,-150.0,0.0001288,2]
[339263007,1727419839274,-4425.98857528,0.00012889,2]
[339263009,1727419839283,-157.7,0.0001289,2]
[339263011,1727419839293,-157.7,0.0001289,2]
[339263013,1727419839302,-150.0,0.00012891,2]
[339263015,1727419839312,-150.0,0.00012893,2]
[339263017,1727419839321,-17455.82863435,0.00012895,2]
[339263019,1727419839330,-287.91481548,0.00012895,2]
[339263020,1727419839340,-150.0,0.00012895,2]
[339263021,1727419839350,-2286.8720073,0.00012897,2]
[339263022,1727419839359,-300.0,0.00012899,2]
[339263023,1727419839369,-300.0,0.00012899,2]
[339263024,1727419839378,-300.0,0.00012899,2]
[339263025,1727419839387,-300.0,0.00012899,2]
[339263026,1727419839397,-300.0,0.00012899,2]
[339263027,1727419839406,-300.0,0.00012899,2]
[339263028,1727419839415,-300.0,0.00012899,2]
[339263029,1727419839424,-300.0,0.00012899,2]
[339263030,1727419839434,-300.0,0.00012899,2]
[339263031,1727419839443,-300.0,0.00012899,2]
[339263032,1727419839453,-300.0,0.00012899,2]
[339263033,1727419839462,-300.0,0.00012899,2]
[339263034,1727419839471,-300.0,0.00012899,2]
[339263035,1727419839481,-300.0,0.00012899,2]
[339263036,1727419839493,-300.0,0.00012899,2]
[339263037,1727419839504,-300.0,0.00012899,2]
[339263038,1727419839514,-500.0,0.00012899,2]
[339263039,1727419839523,-500.0,0.00012899,2]
[339263040,1727419839533,-500.0,0.00012899,2]
[339263041,1727419839542,-500.0,0.00012899,2]
[339263042,1727419839552,-507.07596464,0.00012899,2]
[339263043,1727419839562,-237.64962491,0.00012899,2]
[339263044,1727419839571,-500.0,0.00012899,2]
[339263045,1727419839582,-500.0,0.00012899,2]
[339263046,1727419839591,-500.0,0.00012899,2]
[339263047,1727419839600,-500.0,0.00012899,2]
[339263048,1727419839609,-500.0,0.00012899,2]
[339263049,1727419839620,-500.0,0.00012899,2]
[339263050,1727419839632,-500.0,0.00012899,2]
[339263051,1727419839641,-500.0,0.00012899,2]
[339263052,1727419839651,-500.0,0.00012899,2]
[339263053,1727419839660,-500.0,0.00012899,2]
[339263054,1727419839671,-500.0,0.00012899,2]
[339263055,1727419839681,-451.25057962,0.00012899,2]
[339263056,1727419839691,-500.0,0.00012899,2]
[339263057,1727419839700,-500.0,0.00012899,2]
[339263058,1727419839710,-500.0,0.00012899,2]
[339263059,1727419839721,-500.0,0.00012899,2]
[339263060,1727419839731,-500.0,0.00012899,2]
[339263061,1727419839741,-1000.0,0.00012899,2]
[339263062,1727419839752,-1000.0,0.00012899,2]
[339263063,1727419839761,-1000.0,0.00012899,2]
[339263064,1727419839771,-556.73873008,0.00012899,2]
[339263065,1727419839781,-104419.47717065,0.000129,2]
[339263066,1727419839791,-957929.85241548,0.000129,2]
[339263067,1727419839804,-1291.06,0.000129,2]
[339263068,1727419839816,-421.27749924,0.000129,2]
[339263069,1727419839828,-1306.63194,0.000129,2]
[339263070,1727419839840,-4827.45922204,0.000129,2]
[339263071,1727419839852,-16045.4338332,0.000129,2]
[339263072,1727419839865,-31088.34445756,0.000129,2]
[339263073,1727419839878,-468.50164004,0.000129,2]
[339263074,1727419839890,-1786.89851028,0.000129,2]
[339263075,1727419839901,-584.643,0.000129,2]
[339263076,1727419839913,-668.26362144,0.000129,2]
[339263077,1727419839926,-405.68412239,0.000129,2]
[339263078,1727419839937,-880.16105896,0.000129,2]
[339263079,1727419839950,-453.30570109,0.000129,2]
[339263080,1727419839962,-1659.66309036,0.000129,2]
[339263081,1727419839975,-319.8,0.000129,2]
[339263082,1727419839987,-793.57344363,0.000129,2]
[339263083,1727419840000,-3088.10000001,0.000129,2]
[339263084,1727419840011,-491.32867404,0.000129,2]
[339263085,1727419840023,-2512.71029907,0.000129,2]
[339263086,1727419840037,-26612.30646997,0.000129,2]
[339263087,1727419840048,-2004.85499933,0.000129,2]
[339263088,1727419840060,-5255.92241343,0.000129,2]
[339263089,1727419840073,-869.50764112,0.000129,2]
[339263090,1727419840088,-6022.5791488,0.000129,2]
[339263091,1727419840100,-434.49,0.000129,2]
[339263092,1727419840113,-10362.42247428,0.000129,2]
[339263093,1727419840125,-14225.01632046,0.000129,2]
[339263094,1727419840138,-32552.84912431,0.000129,2]
[339263095,1727419840151,-7094.29459475,0.000129,2]
[339263096,1727419840162,-288.55661629,0.000129,2]
[339263097,1727419840174,-587.62138567,0.000129,2]
[339263098,1727419840186,-1433.91078519,0.000129,2]
[339263099,1727419840197,-867.57638522,0.000129,2]
[339263100,1727419840209,-59362.52481641,0.000129,2]
[339263101,1727419840220,-875.69451227,0.000129,2]
[339263102,1727419840232,-1284.68,0.000129,2]
[339263103,1727419840243,-563.31326908,0.000129,2]
[339263104,1727419840256,-428.61941707,0.000129,2]
[339263105,1727419840267,-824.51259311,0.000129,2]
[339263107,1727419840278,-928.40501222,0.000129,2]
[339263109,1727419840291,-345.0,0.000129,2]
[339263111,1727419840302,-1768.18949562,0.000129,2]
[339263113,1727419840313,-1080225.57601942,0.000129,2]
[339263115,1727419840325,-784.22341677,0.000129,2]
[339263120,1727419840408,-389.16323654,0.000129,2]
[339263121,1727419840420,-1387.96978456,0.000129,2]
[339263122,1727419840432,-658.13316024,0.000129,2]
[339263123,1727419840444,-104166.80425803,0.000129,2]
[339263124,1727419840455,-1396.69046004,0.000129,2]
[339263125,1727419840466,-3014.50300993,0.000129,2]
[339263126,1727419840478,-268488.46732053,0.000129,2]
[339263127,1727419840494,-44179.61026134,0.000129,2]
[339263128,1727419840513,-2607.20000779,0.000129,2]
[339263247,1727419843512,-859.19997548,0.000129,2]
[339263248,1727419843523,-401.38625556,0.000129,2]
[339263249,1727419843538,-6004.64040216,0.000129,2]
[339263250,1727419843646,-1308.08256279,0.000129,2]
[339263251,1727419846316,-837.8752,0.000129,2]
[339263252,1727419846344,-76263.31669165,0.000129,2]
[339263254,1727419847096,-103712.33097,0.000129,2]
[339263255,1727419847110,-592.7955838,0.000129,2]
[339263256,1727419860699,700.0,0.00010068,2]
[339263257,1727419861367,700.0,0.00010068,2]
[339263258,1727419881777,2516.72,0.000149,31]
[339263259,1727419881807,2516.72,0.000149,31]
[339263260,1727419881834,2516.72,0.000149,31]
[339263261,1727419881861,2516.72,0.000149,31]
[339263262,1727419881893,2516.72,0.000149,31]
[339263263,1727419881935,2516.72,0.000149,31]
[339263264,1727419881982,2516.72,0.000149,31]
[339263265,1727419882053,2516.72,0.000149,31]
[339263266,1727419882107,2516.72,0.000149,31]
[339263267,1727419882178,2516.72,0.000149,31]
[339263268,1727419882247,2516.72,0.000149,31]
[339263269,1727419882308,2516.72,0.000149,31]
[339263270,1727419882350,2516.72,0.000149,31]
[339263271,1727419882410,2516.72,0.000149,31]
[339263272,1727419882465,2516.72,0.000149,31]
[339263273,1727419882533,2516.72,0.000149,31]
[339263274,1727419933249,1050.0,0.00011,2]
[339263275,1727419940721,232.52,0.00010012,2]
[339263282,1727420493682,2114.24,0.000149,31]
[339263283,1727420493755,2114.24,0.000149,31]
[339263284,1727420493818,2114.24,0.000149,31]
[339263285,1727420493861,2114.24,0.000149,31]
[339263286,1727420493928,2114.24,0.000149,31]
[339263287,1727420493980,2114.24,0.000149,31]
[339263288,1727420494044,2114.24,0.000149,31]
[339263289,1727420494106,2114.24,0.000149,31]
[339263290,1727420494165,2114.24,0.000149,31]
[339263291,1727420494229,2114.24,0.000149,31]
[339263292,1727420494296,2114.24,0.000149,31]
[339263293,1727420494349,2114.24,0.000149,31]
[339263294,1727420494416,2114.24,0.000149,31]
[339263295,1727420494470,2114.24,0.000149,31]
[339263296,1727420494531,2114.24,0.000149,31]
[339263297,1727420494585,2114.24,0.000149,31]
[339263298,1727420496106,220.89,9.898e-05,2]
[339263300,1727420562028,155.55,0.00010959,2]
[339263476,1727420923760,3031.20666646,0.00011064,2]
[339263477,1727420928696,3031.20666645,0.00011076,2]
[339263478,1727420933710,3031.20666645,0.00011088,2]
[339263553,1727421031650,-1000.0,0.00011133,2]
[339263554,1727421031662,-169.88,0.00011159,2]
[339263555,1727421031671,-250.0,0.00011164,2]
[339263556,1727421031681,-250.0,0.00011188,2]
[339263557,1727421031691,-700.0,0.00011438,2]
[339263558,1727421031701,-700.0,0.00011438,2]
[339263559,1727421031710,-150.0,0.00011589,2]
[339263560,1727421031719,-150.0,0.00011589,2]
[339263561,1727421031730,-150.7075689,0.00011589,2]
[339263562,1727421031739,-150.0,0.00011589,2]
[339263563,1727421031750,-150.0,0.00011589,2]
[339263564,1727421031759,-150.33837435,0.00011589,2]
[339263565,1727421031769,-150.76971302,0.00011589,2]
[339263566,1727421031783,-150.0,0.00011589,2]
[339263567,1727421031792,-150.0,0.00011589,2]
[339263568,1727421031801,-150.0,0.00011611,2]
[339263569,1727421031811,-150.0,0.00011629,2]
[339263570,1727421031820,-150.0,0.00011633,2]
[339263571,1727421031829,-150.0,0.00011656,2]
[339263572,1727421031839,-499.99,0.00011656,2]
[339263574,1727421031850,-150.0,0.0001167,2]
[339263576,1727421031859,-150.0,0.00011678,2]
[339263578,1727421031869,-150.0,0.000117,2]
[339263580,1727421031879,-150.0,0.0001171,2]
[339263582,1727421031888,-150.0,0.00011718,2]
[339263584,1727421031898,-150.0,0.00011722,2]
[339263586,1727421031909,-150.0,0.00011744,2]
[339263588,1727421031918,-150.0,0.0001175,2]
[339263590,1727421031928,-150.0,0.00011767,2]
[339263592,1727421031937,-150.0,0.00011789,2]
[339263594,1727421031947,-150.0,0.0001179,2]
[339263596,1727421031956,-250.0,0.00011803,2]
[339263598,1727421031965,-150.0,0.00011811,2]
[339263600,1727421031974,-3212.16108004,0.00011815,2]
[339263602,1727421031986,-9444.986029,0.00011815,2]
[339263603,1727421031996,-6440.68082418,0.00011815,2]
[339263604,1727421032007,-1228.21770133,0.00011815,2]
[339263605,1727421032018,-3300.0,0.00011815,2]
[339263607,1727421038001,-263.95436545,0.00011815,2]
[339263608,1727421038011,-150.0,0.00011818,2]
[339263609,1727421038020,-216.12,0.00011818,2]
[339263610,1727421038030,-150.0,0.0001183,2]
[339263611,1727421038039,-150.0,0.00011833,2]
[339263612,1727421038049,-172.71,0.00011837,2]
[339263613,1727421038059,-150.0,0.00011847,2]
[339263614,1727421038069,-150.0,0.00011855,2]
[339263615,1727421038079,-150.0,0.00011871,2]
[339263616,1727421038089,-150.0,0.00011878,2]
[339263617,1727421038099,-150.0,0.000119,2]
[339263618,1727421038111,-150.0,0.00011911,2]
[339263619,1727421038121,-150.0,0.00011922,2]
[339263620,1727421038130,-150.0,0.00011944,2]
[339263621,1727421038139,-150.0,0.00011951,2]
[339263622,1727421038149,-150.0,0.00011966,2]
[339263623,1727421038159,-150.0,0.00011975,2]
[339263624,1727421038168,-150.0,0.00011989,2]
[339263625,1727421038178,-150.0,0.00011991,2]
[339263626,1727421038189,-150.0,0.00012011,2]
[339263627,1727421038199,-163.667,0.00012013,2]
[339263628,1727421038209,-150.0,0.00012018,2]
[339263629,1727421038218,-150.0,0.00012032,2]
[339263630,1727421038228,-150.0,0.00012033,2]
[339263631,1727421038237,-167.21,0.00012055,2]
[339263632,1727421038247,-150.0,0.00012055,2]
[339263633,1727421038256,-163.667,0.00012067,2]
[339263634,1727421038265,-150.0,0.00012072,2]
[339263635,1727421038275,-150.0,0.00012077,2]
[339263636,1727421038285,-150.0,0.000121,2]
[339263637,1727421038294,-150.0,0.00012104,2]
[339263638,1727421038303,-150.0,0.00012112,2]
[339263639,1727421038313,-150.0,0.00012122,2]
[339263640,1727421038322,-163.667,0.00012122,2]
[339263641,1727421038332,-150.0,0.00012144,2]
[339263642,1727421038341,-150.0,0.00012152,2]
[339263643,1727421038350,-220.89,0.00012162,2]
[339263644,1727421038360,-150.0,0.00012166,2]
[339263645,1727421038370,-163.667,0.00012177,2]
[339263646,1727421038380,-150.0,0.00012188,2]
[339263647,1727421038389,-562.97,0.00012192,2]
[339263648,1727421038398,-153.54,0.00012192,2]
[339263649,1727421038407,-182.37,0.00012192,2]
[339263650,1727421038424,-150.0,0.00012193,2]
[339263651,1727421038434,-150.0,0.00012211,2]
[339263652,1727421038445,-150.0,0.00012233,2]
[339263653,1727421038455,-150.0,0.00012233,2]
[339263654,1727421038463,-150.0,0.00012233,2]
[339263655,1727421038473,-150.0,0.00012233,2]
[339263656,1727421038483,-163.667,0.00012233,2]
[339263657,1727421038492,-150.0,0.00012255,2]
[339263658,1727421038503,-150.0,0.00012273,2]
[339263659,1727421038512,-150.0,0.00012277,2]
[339263660,1727421038521,-163.667,0.00012289,2]
[339263661,1727421038531,-150.0,0.00012299,2]
[339263662,1727421038540,-150.0,0.00012313,2]
[339263663,1727421038550,-150.0,0.00012322,2]
[339263665,1727421038560,-150.0,0.00012344,2]
[339263667,1727421038569,-163.667,0.00012346,2]
[339263669,1727421038578,-150.0,0.00012354,2]
[339263671,1727421038588,-150.0,0.00012362,2]
[339263673,1727421038597,-150.0,0.00012366,2]
[339263675,1727421038607,-150.0,0.00012388,2]
[339263677,1727421038616,-1042.946803,0.0001239,2]
[339263679,1727421038625,-521.473401,0.0001239,2]
[339263681,1727421038634,-150.0,0.00012394,2]
[339263683,1727421038644,-150.0,0.0001241,2]
[339263685,1727421038653,-150.0,0.00012433,2]
[339263686,1727421038663,-150.0,0.00012434,2]
[339263688,1727421038672,-150.0,0.00012447,2]
[339263690,1727421038682,-150.0,0.00012455,2]
[339263693,1727421038691,-151.55,0.00012466,2]
[339263695,1727421038700,-150.0,0.00012474,2]
[339263697,1727421038710,-150.0,0.00012477,2]
[339263698,1727421038719,-150.0,0.0001249,2]
[339263701,1727421038729,-150.0,0.00012499,2]
[339263702,1727421038738,-150.0,0.00012515,2]
[339263704,1727421038747,-150.0,0.00012521,2]
[339263706,1727421038757,-1000.0,0.00012525,2]
[339263708,1727421038767,-150.0,0.00012544,2]
[339263710,1727421038780,-1042.946803,0.00012545,2]
[339263712,1727421038789,-521.473401,0.00012545,2]
[339263714,1727421038799,-150.0,0.00012555,2]
[339263716,1727421038808,-150.0,0.00012566,2]
[339263719,1727421038819,-150.0,0.00012588,2]
[339263721,1727421038828,-150.0,0.00012595,2]
[339263723,1727421038837,-150.0,0.0001261,2]
[339263724,1727421038848,-150.0,0.00012619,2]
[339263726,1727421038857,-150.0,0.00012632,2]
[339263728,1727421038867,-150.0,0.00012635,2]
[339263730,1727421038877,-412.99038829,0.00012641,2]
[339263732,1727421038886,-150.0,0.00012655,2]
[339263735,1727421038896,-150.0,0.00012676,2]
[339263736,1727421038905,-150.0,0.00012677,2]
[339263738,1727421038918,-150.0,0.00012699,2]
[339263740,1727421038927,-1042.946803,0.000127,2]
[339263742,1727421038937,-521.473401,0.000127,2]
[339263744,1727421038947,-150.0,0.00012716,2]
[339263746,1727421038956,-7268.146,0.00012719,2]
[339263748,1727421038966,-150.0,0.00012721,2]
[339263750,1727421038975,-1500.0,0.00012726,2]
[339263752,1727421038984,-294.49818931,0.00012739,2]
[339263754,1727421038993,-150.0,0.00012744,2]
[339263756,1727421039003,-150.0,0.00012748,2]
[339263778,1727421039202,-150.0,0.00012748,2]
[339263780,1727421039212,-1471.10615176,0.00012749,2]
[339263782,1727421039222,-1500.0,0.00012755,2]
[339263784,1727421039232,-150.0,0.00012756,2]
[339263786,1727421039242,-150.0,0.00012766,2]
[339263788,1727421039251,-150.0,0.0001277,2]
[339263790,1727421039261,-150.0,0.00012773,2]
[339263792,1727421039270,-23149.24905059,0.0001278,2]
[339263794,1727421039279,-150.0,0.00012788,2]
[339263796,1727421039289,-450.0,0.00012789,2]
[339263798,1727421039299,-492.0487,0.00012789,2]
[339263800,1727421039308,-1136.44,0.00012793,2]
[339263802,1727421039318,-2227.23341004,0.00012793,2]
[339263804,1727421039329,-150.0,0.00012796,2]
[339263806,1727421039339,-500.0,0.00012797,2]
[339263808,1727421039348,-3810.4606,0.00012799,2]
[339263810,1727421039358,-21696.9967,0.00012799,2]
[339263811,1727421039367,-2400.0,0.000128,2]
[339263813,1727421039377,-3185.0946,0.000128,2]
[339263817,1727421039387,-225.7839,0.000128,2]
[339263818,1727421039397,-3183.5002,0.000128,2]
[339263820,1727421039407,-166.69228459,0.000128,2]
[339263822,1727421039417,-151.34010265,0.000128,2]
[339263824,1727421039426,-6691.9528,0.000128,2]
[339263826,1727421039437,-159.71256512,0.000128,2]
[339263828,1727421039446,-328.36293245,0.000128,2]
[339263830,1727421039456,-150.0,0.00012804,2]
[339263832,1727421039465,-2227.23341002,0.00012805,2]
[339263834,1727421039475,-700.0,0.00012808,2]
[339263836,1727421039484,-700.0,0.00012808,2]
[339263838,1727421039494,-150.0,0.0001281,2]
[339263840,1727421039503,-2227.23341002,0.00012817,2]
[339263842,1727421039513,-159.71256512,0.00012825,2]
[339263844,1727421039522,-2227.23341002,0.00012829,2]
[339263845,1727421039532,-150.0,0.00012832,2]
[339263847,1727421039542,-150.0,0.00012836,2]
[339263849,1727421039551,-2227.23341002,0.00012841,2]
[339263851,1727421039561,-159.71256512,0.0001285,2]
[339263852,1727421039570,-2227.23341002,0.00012852,2]
[339263854,1727421039580,-150.0,0.00012855,2]
[339263855,1727421039590,-1042.946803,0.00012855,2]
[339263857,1727421039599,-521.473401,0.00012855,2]
[339263859,1727421039609,-2227.23341002,0.00012864,2]
[339263861,1727421039618,-150.0,0.00012865,2]
[339263863,1727421039627,-375.07,0.00012867,2]
[339263864,1727421039638,-153.744,0.00012867,2]
[339263866,1727421039647,-150.0,0.0001287,2]
[339263868,1727421039657,-150.0,0.00012871,2]
[339263869,1727421039666,-159.71256512,0.00012875,2]
[339263871,1727421039676,-2227.23341002,0.00012876,2]
[339263873,1727421039685,-267.15378696,0.00012877,2]
[339263874,1727421039695,-150.0,0.00012877,2]
[339263876,1727421039704,-201.00000001,0.00012877,2]
[339263878,1727421039713,-150.8781928,0.00012877,2]
[339263879,1727421039722,-150.91008905,0.00012877,2]
[339263881,1727421039731,-1500.0,0.00012886,2]
[339263883,1727421039740,-2227.23341002,0.00012888,2]
[339263885,1727421039750,-170.47573413,0.00012891,2]
[339263886,1727421039759,-170.47573413,0.00012891,2]
[339263888,1727421039768,-170.97,0.00012891,2]
[339263890,1727421039782,-152.34154461,0.00012891,2]
[339263892,1727421039791,-152.34154461,0.00012891,2]
[339263893,1727421039800,-152.34154461,0.00012891,2]
[339263895,1727421039811,-152.34154461,0.00012891,2]
[339263897,1727421039820,-152.34154461,0.00012891,2]
[339263899,1727421039829,-152.34154461,0.00012891,2]
[339263901,1727421039838,-152.34154461,0.00012891,2]
[339263902,1727421039848,-152.34154461,0.00012891,2]
[339263904,1727421039858,-152.34154461,0.00012891,2]
[339263906,1727421039868,-152.34154461,0.00012891,2]
[339263908,1727421039876,-152.34154461,0.00012891,2]
[339263909,1727421039885,-152.34154461,0.00012891,2]
[339263911,1727421039895,-152.34154461,0.00012891,2]
[339263913,1727421039904,-152.34154461,0.00012891,2]
[339263915,1727421039914,-152.34154461,0.00012891,2]
[339263916,1727421039923,-152.34154461,0.00012891,2]
[339263918,1727421039933,-152.34154461,0.00012891,2]
[339263920,1727421039942,-152.34154461,0.00012891,2]
[339263922,1727421039951,-152.34154461,0.00012891,2]
[339263923,1727421039961,-152.84,0.00012891,2]
[339263925,1727421039970,-182.54364369,0.00012891,2]
[339263927,1727421039980,-182.54364369,0.00012891,2]
[339263929,1727421039989,-182.54364369,0.00012891,2]
[339263931,1727421039998,-182.54364369,0.00012891,2]
[339263932,1727421040007,-182.54364369,0.00012891,2]
[339263935,1727421040017,-182.54364369,0.00012891,2]
[339263938,1727421040026,-182.54364369,0.00012891,2]
[339263941,1727421040035,-182.54364369,0.00012891,2]
[339263942,1727421040044,-182.54364369,0.00012891,2]
[339263945,1727421040054,-182.54364369,0.00012891,2]
[339263948,1727421040062,-182.54364369,0.00012891,2]
[339263951,1727421040071,-182.54364369,0.00012891,2]
[339263952,1727421040080,-182.54364369,0.00012891,2]
[339263954,1727421040089,-182.54364369,0.00012891,2]
[339263956,1727421040098,-182.54364369,0.00012891,2]
[339263958,1727421040107,-182.54364369,0.00012891,2]
[339263960,1727421040116,-182.54364369,0.00012891,2]
[339263961,1727421040128,-182.54364369,0.00012891,2]
[339263963,1727421040137,-182.54364369,0.00012891,2]
[339263965,1727421040147,-183.04,0.00012891,2]
[339263967,1727421040156,-5328.9605549,0.00012893,2]